bitfinex/quotes_ETHUSD_20250504
["timestamp","ask_amount","ask_price","bid_price","bid_amount"]
[1746325884169,5.41909872,1845.4,1845.0,7.41242114]
[1746325884998,5.41909872,1845.4,1845.0,0.8259]
[1746325885309,5.96928537,1845.3,1845.0,0.8259]
[1746325886419,0.55,1845.1,1844.8,10.77885819]
[1746325886751,5.96991822,1845.1,1844.6,0.7514]
[1746325887040,5.96991822,1845.1,1844.7,5.42087521]
[1746325888267,0.55,1845.1,1844.8,5.42058883]
[1746325889260,0.55,1845.1,1844.9,6.18937474]
[1746325889417,0.55,1845.1,1844.8,6.18960977]
[1746325890252,0.55,1845.1,1844.9,5.42029947]
[1746325890460,0.55,1845.1,1844.8,6.18955921]
[1746325890757,0.55,1845.1,1844.9,5.4202368]
[1746325890930,0.55,1845.1,1844.8,6.18955071]
[1746325893770,0.55,1845.0,1844.7,5.42082401]
[1746325894072,1.3566,1845.0,1844.7,5.42082419]
[1746325894377,1.3566,1845.0,1844.8,5.42061538]
[1746325894682,1.3566,1845.0,1844.7,5.42090615]
[1746325895456,1.3566,1845.0,1844.6,6.23569233]
[1746325895457,6.77672597,1845.0,1844.6,6.23569233]
[1746325896224,1.3566,1845.0,1844.6,11.65668805]
[1746325897464,1.3566,1845.0,1844.7,5.42085261]
[1746325898061,1.3566,1845.0,1844.6,6.23559572]
[1746325898248,1.3566,1845.0,1844.5,4.604]
[1746325898249,5.42088064,1844.8,1844.4,0.8146]
[1746325898567,5.42088064,1844.8,1844.4,7.41320899]
[1746325898568,0.55,1844.8,1844.4,7.41320899]
[1746325898731,0.55,1844.9,1844.5,5.4213763]
[1746325898931,0.55,1844.9,1844.6,5.42122774]
[1746325900371,0.55,1844.9,1844.5,5.42134263]
[1746325901061,5.97035482,1844.9,1844.5,5.42134263]
[1746325901376,5.97035482,1844.9,1844.4,6.23625587]
[1746325901680,5.42065037,1844.8,1844.4,6.23625587]
[1746325901973,5.97053623,1844.9,1844.4,6.23620618]
[1746325902956,5.42067791,1844.8,1844.4,0.8146]
[1746325903156,6.19043954,1844.7,1844.3,10.02698709]
[1746325903514,0.7694,1844.7,1844.3,10.02688078]
[1746325903675,0.7694,1844.7,1844.3,15.44879173]
[1746325903876,0.7694,1844.7,1844.3,10.02688078]
[1746325904263,0.55,1844.6,1844.3,4.605]
[1746325904603,0.55,1844.6,1844.3,10.02709776]
[1746325906364,0.55,1844.6,1844.3,4.605]
[1746325908078,0.55,1844.6,1844.3,10.02705905]
[1746325908268,0.55,1844.6,1844.3,5.42205905]
[1746325910400,0.55,1844.6,1844.2,6.21662635]
[1746325910603,5.97123388,1844.6,1844.2,11.63886337]
[1746325910803,5.97140432,1844.6,1844.2,6.2167954]
[1746325913504,5.97140432,1844.6,1844.2,5.4223954]
[1746325914101,0.55,1844.6,1844.3,5.42207825]
[1746325914412,0.55,1844.6,1844.3,5.42190527]
[1746325914606,0.55,1844.6,1844.3,10.84380222]
[1746325914779,0.55,1844.6,1844.3,5.42189695]
[1746325917209,5.97124857,1844.6,1844.2,6.21475328]
[1746325917510,11.39273548,1844.6,1844.2,5.42225328]
[1746325917691,0.7514,1844.5,1844.2,5.42225328]
[1746325918113,0.7514,1844.5,1844.2,5.42238292]
[1746325919378,0.7514,1844.5,1844.2,10.8445896]
[1746325919596,0.7514,1844.5,1844.2,5.42220668]
[1746325920820,0.7514,1844.5,1844.3,5.42209559]
[1746325921320,0.7514,1844.5,1844.2,5.42223414]
[1746325921815,0.7514,1844.5,1844.1,6.63140087]
[1746325922120,0.7514,1844.5,1844.2,5.42239929]
[1746325923815,0.7514,1844.5,1844.1,6.63139004]
[1746325924316,0.7514,1844.5,1844.1,6.63139029]
[1746325924516,5.42213199,1844.3,1844.1,0.4163857]
[1746325924724,5.97193692,1844.4,1844.1,0.4163857]
[1746325925122,0.55,1844.2,1844.1,0.4163857]
[1746325925324,5.97240537,1844.2,1844.1,0.4163857]
[1746325926894,6.74500537,1844.2,1844.1,0.4163857]
[1746325929218,9.00996855,1844.2,1844.1,0.4163857]
[1746325930216,14.99996854,1844.2,1844.1,0.4163857]
[1746325932928,14.99996854,1844.2,1844.1,0.56859953]
[1746325933129,14.99996854,1844.2,1844.1,0.4163857]
[1746325936602,17.99996854,1844.2,1844.1,0.4163857]
[1746325939000,23.71596854,1844.2,1844.1,0.4163857]
[1746325939199,23.71596854,1844.2,1843.4,0.8212]
[1746325939200,0.55,1843.5,1843.4,0.8212]
[1746325939405,0.55,1843.5,1843.4,0.95569538]
[1746325940037,0.55,1843.5,1843.4,0.13449538]
[1746325943637,6.78986433,1843.5,1843.4,0.13449538]
[1746325943951,6.78986433,1843.5,1843.1,0.797]
[1746325944136,6.78986433,1843.5,1843.4,0.13473866]
[1746325944304,0.55,1843.3,1843.1,0.797]
[1746325944839,0.55,1843.3,1843.0,5.42572521]
[1746325946407,0.55,1843.3,1843.1,0.13923847]
[1746325947442,0.55,1843.3,1843.1,5.56483388]
[1746325947644,0.55,1843.3,1843.1,10.99023904]
[1746325947844,0.55,1843.3,1843.1,10.99011188]
[1746325948143,0.55,1843.3,1843.1,5.56464363]
[1746325948343,0.55,1843.3,1843.1,10.99006821]
[1746325948720,0.55,1843.3,1843.2,5.42534722]
[1746325948924,9.39086662,1843.7,1843.3,5.42491093]
[1746325949248,5.98999999,1843.7,1843.5,6.24665453]
[1746325949742,5.98999999,1843.7,1843.6,0.13762737]
[1746325953649,3.55,1843.8,1843.6,0.13762737]
[1746325955653,3.96527877,1843.8,1843.6,0.13762737]
[1746325956151,3.55,1843.8,1843.6,0.13762737]
[1746325960152,0.55,1843.8,1843.6,0.13762737]
[1746325960727,0.96363739,1843.8,1843.6,0.13762737]
[1746325968858,0.55,1843.8,1843.7,5.4238759]
[1746325969024,0.55,1843.8,1843.7,5.55907866]
[1746325969226,5.98999999,1843.9,1843.7,5.55907866]
[1746325970053,5.98999999,1843.9,1843.7,0.13520276]
[1746325970254,5.98999999,1843.9,1843.6,5.42402236]
[1746325970568,5.98999999,1843.9,1843.7,0.13520276]
[1746325970943,5.98999999,1843.9,1843.7,5.42385712]
[1746325971146,6.53999999,1843.9,1843.8,0.13477364]
[1746325973371,12.73868758,1843.9,1843.8,0.13477364]
[1746325973668,5.97363684,1843.8,1843.5,0.7941]
[1746325974899,11.39746852,1843.8,1843.5,0.7941]
[1746325975086,5.97363684,1843.8,1843.5,0.7941]
[1746325976029,11.39747415,1843.8,1843.5,0.7941]
[1746325976236,5.97363684,1843.8,1843.5,0.7941]
[1746325976474,5.97363684,1843.8,1843.6,0.13563193]
[1746325979293,11.39748578,1843.8,1843.6,0.13563193]
[1746325979458,5.97363684,1843.8,1843.6,0.13563193]
[1746325979982,5.4238759,1843.7,1843.6,0.13563193]
[1746325980374,5.9738759,1843.7,1843.6,0.13563193]
[1746325980675,0.55,1843.4,1843.1,0.8302]
[1746325980858,5.97487818,1843.4,1843.1,0.8302]
[1746325981065,5.97487818,1843.4,1843.2,0.15737491]
[1746325981476,5.97505289,1843.3,1843.2,0.15737491]
[1746325981786,0.95582721,1843.3,1842.9,6.25625355]
[1746325981945,6.3808801,1843.3,1842.9,0.8302]
[1746325982146,6.38109093,1843.3,1842.9,0.8302]
[1746325982386,6.38109093,1843.3,1843.0,0.15844846]
[1746325983194,0.55,1843.1,1843.0,0.15844846]
[1746325984767,6.3810399,1843.3,1843.0,0.15844846]
[1746325985685,5.83106293,1843.3,1843.0,0.15844846]
[1746325986488,0.55,1843.2,1843.0,0.15844846]
[1746325987753,5.42564158,1843.1,1843.0,0.15844846]
[1746325988050,6.78302561,1843.2,1842.8,5.92651555]
[1746325988283,6.78302561,1843.2,1842.9,0.15898533]
[1746325988590,6.782964,1843.2,1842.9,0.15898533]
[1746325988796,8.42584495,1843.1,1842.9,0.15898533]
[1746325988997,5.42593597,1843.0,1842.9,0.15898533]
[1746325989476,5.97593597,1843.0,1842.9,0.15898533]
[1746325989850,6.74903597,1843.0,1842.9,0.15898533]
[1746325990882,12.73903596,1843.0,1842.9,0.15898533]
[1746325991589,6.53999999,1843.0,1842.9,0.15898533]
[1746325996360,11.96593596,1843.0,1842.9,0.15898533]
[1746325996679,5.97623039,1842.9,1842.8,0.5]
[1746325996903,5.97623039,1842.9,1842.8,0.6519665]
[1746325997917,5.97623039,1842.9,1842.8,0.5]
[1746325998301,8.97623039,1842.9,1842.8,0.5]
[1746325998882,0.55,1842.9,1842.8,0.5]
[1746325999290,5.97623039,1842.9,1842.8,0.5]
[1746326000923,6.78353039,1842.9,1842.8,0.5]
[1746326001091,9.78353039,1842.9,1842.8,0.5]
[1746326003928,9.78353039,1842.9,1842.8,0.45]
[1746326005227,18.77353038,1842.9,1842.8,0.45]
[1746326006923,17.96623038,1842.9,1842.8,0.45]
[1746326010834,18.72923038,1842.9,1842.8,0.45]
[1746326014315,17.96623038,1842.9,1842.8,0.45]
[1746326015928,18.72923038,1842.9,1842.8,0.45]
[1746326016116,20.99419356,1842.9,1842.8,0.45]
[1746326016552,20.99419356,1842.9,1842.8,0.4]
[1746326016960,5.42799761,1842.3,1842.2,0.4163857]
[1746326017130,14.5679976,1842.3,1842.2,0.4163857]
[1746326018255,17.59596078,1842.3,1842.2,0.4163857]
[1746326019219,17.59596078,1842.3,1842.2,1e-08]
[1746326019420,19.04333556,1842.3,1842.2,1e-08]
[1746326019620,18.31338864,1842.3,1842.2,1e-08]
[1746326019817,18.72426763,1842.3,1842.2,1e-08]
[1746326020955,15.74187659,1842.3,1842.2,1e-08]
[1746326021533,5.4299753,1841.7,1841.3,0.7797]
[1746326021848,5.97967883,1841.8,1841.3,6.21050589]
[1746326022052,11.40943454,1841.8,1841.3,6.21050589]
[1746326022357,5.97967883,1841.8,1841.3,6.21050589]
[1746326022558,0.55,1841.8,1841.4,5.43042895]
[1746326022724,0.55,1841.8,1841.5,0.7797]
[1746326023127,5.97951933,1841.8,1841.5,0.7797]
[1746326023360,5.42981802,1841.7,1841.5,0.7797]
[1746326023729,0.55,1841.3,1841.0,0.7965]
[1746326023960,3.0,1841.4,1841.1,5.43134923]
[1746326023961,0.55,1841.4,1841.1,5.43134923]
[1746326024128,0.55,1841.4,1841.2,0.7965]
[1746326024460,0.55,1841.5,1841.4,0.7965]
[1746326027573,0.55,1841.5,1841.2,0.7965]
[1746326028840,0.55,1841.5,1841.2,6.22759381]
[1746326030269,0.55,1841.5,1841.2,0.7965]
[1746326030565,0.55,1841.5,1841.3,6.24681973]
[1746326030723,0.55,1841.5,1841.3,0.816]
[1746326031734,0.55,1841.5,1841.3,6.24692794]
[1746326031940,0.55,1841.5,1841.3,0.816]
[1746326032961,3.0,1841.4,1840.6,4.596]
[1746326033164,5.98046233,1841.5,1841.1,6.24748881]
[1746326033342,3.0,1841.4,1841.1,6.24748881]
[1746326033541,3.0,1841.4,1841.2,0.15880951]
[1746326033944,0.55,1841.0,1840.8,6.21835317]
[1746326034264,0.55,1841.0,1840.8,6.21830162]
[1746326034498,0.55,1841.2,1840.9,5.43212559]
[1746326034785,0.55,1841.2,1841.0,0.786]
[1746326035885,5.98141031,1841.2,1840.8,5.43225139]
[1746326036192,5.98141031,1841.2,1840.6,0.786]
[1746326036193,5.98271581,1840.7,1840.6,0.786]
[1746326036344,5.98271581,1840.7,1840.1,8.20915133]
[1746326036345,0.55,1840.5,1840.1,4.40015133]
[1746326036549,0.55,1840.4,1840.1,4.40015133]
[1746326036980,5.98360139,1840.4,1840.1,4.40015133]
[1746326037384,0.55,1840.4,1840.1,4.40015133]
[1746326037583,0.55,1840.4,1840.1,9.83455427]
[1746326037789,5.58999999,1840.5,1840.2,5.43411339]
[1746326037951,5.58999999,1840.5,1840.2,5.43401235]
[1746326038271,5.58999999,1840.5,1840.3,5.85026235]
[1746326038763,5.58999999,1840.5,1840.3,0.4163857]
[1746326038954,5.58999999,1840.5,1840.3,5.85024993]
[1746326039149,5.58999999,1840.8,1840.4,0.786]
[1746326039380,5.58999999,1840.8,1840.5,5.43316707]
[1746326039763,0.55,1840.7,1840.5,5.43316707]
[1746326039957,5.58999999,1840.8,1840.5,5.43316707]
[1746326040259,0.55,1840.7,1840.6,5.43301097]
[1746326040592,5.58999999,1840.8,1840.6,6.21901097]
[1746326040750,5.58999999,1840.8,1840.7,5.43271581]
[1746326041485,5.58999999,1840.8,1840.7,6.59786972]
[1746326042291,5.58999999,1840.8,1840.7,5.43271581]
[1746326043293,0.55,1841.1,1840.8,5.43215497]
[1746326043486,11.02096618,1841.3,1840.9,5.43209674]
[1746326043677,5.58999999,1841.3,1841.0,6.2178304]
[1746326044268,0.55,1841.2,1841.0,6.2178304]
[1746326044454,5.58999999,1841.3,1841.0,1.40778304]
[1746326044655,5.58999999,1841.3,1841.1,5.43133373]
[1746326045594,6.13999999,1841.3,1841.2,5.43124049]
[1746326046258,3.0,1841.6,1841.2,5.43105949]
[1746326046457,3.0,1841.6,1841.2,5.43096826]
[1746326046987,5.58999999,1841.7,1841.3,5.43075357]
[1746326047174,0.55,1841.6,1841.4,6.21640631]
[1746326048365,0.55,1841.6,1841.4,0.786]
[1746326048702,0.55,1841.6,1841.3,5.43077624]
[1746326050599,0.55,1841.6,1841.4,5.43053848]
[1746326050805,0.55,1841.6,1841.3,5.43077624]
[1746326052004,5.98014279,1841.6,1841.2,0.8155]
[1746326052363,5.98014279,1841.6,1841.2,6.24661424]
[1746326052897,0.55,1841.6,1841.2,6.24655778]
[1746326053110,5.98018162,1841.6,1841.2,6.24655778]
[1746326054300,0.55,1841.6,1841.2,6.24650364]
[1746326054501,5.98007598,1841.6,1841.2,6.24650364]
[1746326055073,0.55,1841.6,1841.2,11.67752758]
[1746326055378,0.55,1841.6,1841.3,5.43090609]
[1746326056692,5.98018341,1841.6,1841.1,6.26461837]
[1746326056873,8.980263,1841.6,1841.2,5.43121646]
[1746326059171,3.55,1841.6,1841.2,5.43103885]
[1746326059692,3.55,1841.6,1841.3,5.43092795]
[1746326060199,3.55,1841.6,1841.2,5.43108551]
[1746326060408,3.55,1841.6,1841.2,5.4310174]
[1746326060727,0.55,1841.6,1841.3,5.43071576]
[1746326062721,5.98008217,1841.6,1841.2,10.86219058]
[1746326062881,3.55,1841.6,1841.3,5.4309288]
[1746326063085,8.98007748,1841.6,1841.2,5.43104988]
[1746326063287,3.55,1841.6,1841.2,5.43102922]
[1746326063489,3.55,1841.6,1841.3,5.43094534]
[1746326064887,3.55,1841.6,1841.3,5.43075972]
[1746326065088,0.55,1841.6,1841.4,5.4305467]
[1746326065723,0.55,1841.6,1841.3,5.43081608]
[1746326066619,0.55,1841.6,1841.3,10.86156005]
[1746326066835,0.55,1841.6,1841.3,5.43074397]
[1746326067003,0.55,1841.6,1841.2,5.43107518]
[1746326067004,3.55,1841.6,1841.1,6.26457923]
[1746326067207,8.98024556,1841.6,1841.2,5.43120858]
[1746326067420,4.3823,1841.4,1841.0,0.7871]
[1746326067627,0.55,1841.3,1840.8,5.43236395]
[1746326067933,0.55,1841.2,1840.9,5.43212558]
[1746326068098,0.55,1841.2,1840.9,5.43189191]
[1746326069896,0.55,1841.2,1840.8,5.43219036]
[1746326070241,0.55,1841.2,1840.9,5.43209951]
[1746326072870,0.55,1841.2,1840.8,5.43224788]
[1746326073079,8.98140845,1841.2,1840.7,0.7871]
[1746326073259,0.55,1841.0,1840.5,4.40235133]
[1746326073579,8.98185933,1841.0,1840.6,5.43293377]
[1746326074639,8.98185933,1841.0,1840.5,6.22125164]
[1746326075937,0.55,1840.8,1840.5,5.43329835]
[1746326076138,0.55,1840.8,1840.6,5.43298897]
[1746326077750,0.55,1840.8,1840.6,6.24508897]
[1746326079152,0.55,1840.8,1840.6,0.8121]
[1746326080239,0.55,1840.8,1840.6,6.24507427]
[1746326083088,0.55,1840.8,1840.5,5.43316261]
[1746326083870,0.55,1840.8,1840.5,10.86623112]
[1746326084088,0.55,1840.8,1840.5,10.86617257]
[1746326084247,0.55,1840.8,1840.5,5.43306851]
[1746326085548,0.55,1840.8,1840.5,10.86615586]
[1746326086182,0.55,1840.8,1840.5,5.43306851]
[1746326087485,0.55,1840.8,1840.5,10.86614297]
[1746326087794,0.55,1840.8,1840.5,5.43306851]
[1746326088088,5.98249263,1840.8,1840.4,6.2455105]
[1746326088251,1.3648,1840.8,1840.4,6.24549645]
[1746326088978,1.3648,1840.8,1840.3,0.4163857]
[1746326088979,5.43294052,1840.7,1840.3,0.4163857]
[1746326089181,5.43271581,1840.7,1840.3,5.85018831]
[1746326089395,15.38737579,1840.8,1840.3,5.85018831]
[1746326089396,0.55,1840.4,1840.3,0.4163857]
[1746326089990,5.43360139,1840.4,1840.3,0.4163857]
[1746326090367,12.39299537,1840.5,1840.3,0.4163857]
[1746326090565,5.98360139,1840.4,1840.3,0.4163857]
[1746326091291,8.98360139,1840.4,1840.3,0.4163857]
[1746326092088,0.55,1839.9,1839.8,3.61415133]
[1746326093200,3.55,1839.9,1839.8,3.61415133]
[1746326093380,8.98507799,1839.9,1839.8,3.61415133]
[1746326093757,0.55,1839.8,1839.5,0.8084]
[1746326094691,0.55,1839.8,1839.6,5.43591633]
[1746326094866,0.55,1839.8,1839.7,5.43566885]
[1746326095792,5.58999999,1840.0,1839.5,1.4328727]
[1746326095793,3.55,1839.9,1839.5,6.24448558]
[1746326096155,3.55,1839.9,1839.6,5.43595407]
[1746326096757,3.55,1839.9,1839.5,6.24451857]
[1746326097414,9.13999999,1839.9,1839.5,11.68054384]
[1746326097725,0.7703,1839.8,1839.3,4.43165133]
[1746326098228,14.97984757,1839.9,1839.5,5.43611007]
[1746326098381,14.5752126,1839.9,1839.5,5.43611007]
[1746326098581,14.57523361,1839.9,1839.5,5.43611007]
[1746326098821,9.13999999,1839.9,1839.4,5.43651129]
[1746326099113,14.57519424,1839.9,1839.3,1.26066513]
[1746326099315,4.641,1839.8,1839.5,5.43618151]
[1746326099822,4.641,1839.8,1839.6,0.15367053]
[1746326101522,10.07641751,1839.8,1839.4,5.43636839]
[1746326101729,5.191,1839.8,1839.7,0.15313174]
[1746326101889,0.55,1839.7,1839.5,5.43624958]
[1746326106038,0.55,1839.7,1839.4,5.43643407]
[1746326106203,0.55,1839.7,1839.5,5.43620208]
[1746326106539,5.58999999,1839.9,1839.8,5.43537341]
[1746326106835,0.55,1839.8,1839.5,6.25362263]
[1746326107399,0.55,1839.4,1838.9,1.3175]
[1746326107628,3.0,1839.0,1838.9,0.5]
[1746326107814,0.55,1839.0,1838.9,0.5]
[1746326108215,11.00129999,1839.3,1838.9,5.93788187]
[1746326108417,0.55,1839.2,1838.9,6.75538187]
[1746326108621,0.55,1839.2,1838.9,1.3175]
[1746326108815,0.55,1839.2,1839.0,5.43761399]
[1746326109338,0.55,1839.2,1838.9,0.5]
[1746326109920,3.55,1839.0,1838.9,0.5]
[1746326110118,0.55,1839.0,1838.9,5.9380336]
[1746326110349,3.0,1839.2,1838.9,5.9380336]
[1746326110519,0.55,1839.1,1838.9,5.93780662]
[1746326110851,5.58999999,1839.3,1839.2,5.43714658]
[1746326111446,5.58999999,1839.3,1839.2,6.19234658]
[1746326111765,5.58999999,1839.6,1839.4,5.43639357]
[1746326111949,5.58999999,1839.6,1839.2,0.7552]
[1746326112167,0.55,1839.5,1839.2,0.7552]
[1746326112375,5.58999999,1839.6,1839.5,5.43625985]
[1746326112688,5.58999999,1839.6,1839.4,5.43640809]
[1746326112889,5.58999999,1839.6,1839.3,5.43668175]
[1746326113071,5.58999999,1839.6,1839.3,5.43664242]
[1746326113397,5.58999999,1839.6,1839.4,5.43643413]
[1746326113771,5.58999999,1839.6,1839.4,5.43634297]
[1746326113937,5.58999999,1839.6,1839.4,5.43631469]
[1746326115041,6.13999999,1839.6,1839.5,5.43625985]
[1746326116073,5.58999999,1839.6,1839.5,6.19595985]
[1746326116280,5.58999999,1839.6,1839.5,7.36462349]
[1746326118503,6.13999999,1839.6,1839.4,5.43638428]
[1746326118796,6.13999999,1839.6,1839.3,0.8103]
[1746326118797,6.96689999,1839.6,1839.3,5.43668741]
[1746326118994,6.13999999,1839.6,1839.4,5.43654736]
[1746326120705,0.55,1839.5,1839.2,5.43696911]
[1746326120869,0.55,1839.5,1839.4,5.43655539]
[1746326122095,5.58999999,1839.6,1839.5,5.43625985]
[1746326125072,0.55,1839.5,1839.2,5.4369461]
[1746326125695,0.55,1839.5,1839.2,10.87391531]
[1746326125891,0.55,1839.5,1839.2,5.4369461]
[1746326126195,6.41689999,1839.6,1839.4,5.43655539]
[1746326126398,5.58999999,1839.6,1839.4,5.43633469]
[1746326126912,5.58999999,1839.6,1839.3,0.8103]
[1746326126913,5.58999999,1839.6,1839.3,6.247089]
[1746326127075,5.58999999,1839.6,1839.4,5.43635853]
[1746326127279,0.55,1839.5,1839.4,5.43635853]
[1746326127478,6.13999999,1839.6,1839.5,5.43625985]
[1746326127674,5.58999999,1839.6,1839.5,5.43625985]
[1746326127904,0.55,1839.4,1838.9,1.90408066]
[1746326128104,0.55,1839.4,1839.1,5.43716827]
[1746326128293,0.55,1839.4,1839.2,5.43711857]
[1746326128610,0.55,1839.4,1839.2,5.4369788]
[1746326128986,0.55,1839.4,1839.3,5.43685097]
[1746326129421,0.55,1839.4,1839.2,5.4369788]
[1746326130721,0.55,1839.4,1839.1,5.43726506]
[1746326131019,0.55,1839.4,1839.2,5.43705135]
[1746326131897,0.55,1839.4,1839.3,0.34263676]
[1746326132819,0.55,1839.2,1838.9,6.74823139]
[1746326132989,0.55,1839.3,1839.0,5.75622398]
[1746326133389,0.7588,1839.2,1839.0,5.75622398]
[1746326134024,0.7588,1839.2,1839.1,5.43744222]
[1746326134025,1.3088,1839.2,1839.1,5.43744222]
[1746326134319,1.3088,1839.2,1839.0,5.75611312]
[1746326134528,1.3088,1839.2,1839.1,0.31814181]
[1746326135623,0.55,1839.2,1839.1,5.75558403]
[1746326135820,0.55,1839.2,1839.1,0.31814181]
[1746326137189,0.55,1839.1,1839.0,5.43771906]
[1746326137391,0.55,1839.1,1839.0,0.31851545]
[1746326137727,0.55,1839.2,1839.0,5.75615028]
[1746326138023,0.55,1839.3,1839.0,5.75615028]
[1746326138219,0.55,1839.3,1839.0,0.31851545]
[1746326138811,5.98696034,1839.3,1839.0,0.31851545]
[1746326139921,0.55,1839.3,1839.0,5.75610361]
[1746326140435,5.43717441,1839.2,1839.0,0.31851545]
[1746326140931,0.7845,1839.1,1839.0,0.31851545]
[1746326144626,3.0,1839.2,1839.0,0.31851545]
[1746326149444,3.0,1839.2,1839.0,5.75622528]
[1746326150479,3.0,1839.2,1839.0,0.31851545]
[1746326151037,8.43717028,1839.2,1839.0,0.31851545]
[1746326151482,3.0,1839.2,1839.0,0.31851545]
[1746326152383,3.0,1839.2,1839.0,5.75623219]
[1746326152590,5.58999999,1839.3,1839.0,6.58193219]
[1746326152886,0.55,1839.2,1839.0,6.58193219]
[1746326153887,0.55,1839.2,1839.0,6.58174475]
[1746326154065,0.55,1839.2,1839.1,5.43744222]
[1746326154273,0.55,1839.2,1839.0,6.5817575]
[1746326154582,0.55,1839.2,1839.1,0.31982863]
[1746326156883,5.58999999,1839.3,1839.1,5.75714075]
[1746326157895,5.58999999,1839.3,1839.1,0.31982863]
[1746326159387,5.58999999,1839.3,1839.1,5.75716134]
[1746326160106,5.58999999,1839.3,1839.1,0.31982863]
[1746326160523,5.58999999,1839.3,1839.1,5.7572546]
[1746326161913,5.58999999,1839.3,1839.1,0.31982863]
[1746326164031,0.55,1839.2,1839.1,0.31982863]
[1746326165219,0.55,1839.2,1838.9,5.93783034]
[1746326165495,0.55,1839.2,1839.0,0.29454008]
[1746326166829,5.98744222,1839.1,1839.0,0.29454008]
[1746326166995,1.3152,1839.1,1839.0,0.29454008]
[1746326167427,6.75264222,1839.1,1839.0,0.29454008]
[1746326168225,1.3152,1839.1,1839.0,0.29454008]
[1746326168529,6.75264222,1839.1,1839.0,0.29454008]
[1746326169830,1.3152,1839.1,1839.0,0.29454008]
[1746326170333,6.75264222,1839.1,1839.0,0.29454008]
[1746326172359,12.34264221,1839.1,1839.0,0.29454008]
[1746326176057,11.57744221,1839.1,1839.0,0.29454008]
[1746326178740,0.55,1839.0,1838.9,0.5]
[1746326184655,7.70122546,1839.5,1838.9,0.5]
[1746326184656,8.58999999,1839.4,1839.1,6.23840194]
[1746326185046,9.37639999,1839.4,1838.9,1.3011]
[1746326185247,0.55,1839.1,1838.9,0.5]
[1746326185644,5.4377379,1839.0,1838.9,0.5]
[1746326185861,6.8155917,1839.1,1838.9,0.5]
[1746326186244,6.8155917,1839.1,1839.0,0.27139944]
[1746326186439,6.8155917,1839.1,1838.9,0.5]
[1746326186644,0.55,1839.1,1839.0,0.27139944]
[1746326187355,8.58999999,1839.4,1839.0,7.1484735]
[1746326187552,8.58999999,1839.4,1839.0,1.7107356]
[1746326187771,8.58999999,1839.4,1839.1,5.43716859]
[1746326187971,0.55,1839.3,1839.1,5.43716859]
[1746326188292,0.55,1839.3,1839.2,0.27065222]
[1746326188650,0.55,1839.3,1839.0,6.25590396]
[1746326189001,0.55,1839.3,1839.1,5.70833653]
[1746326189492,0.55,1839.3,1839.2,5.43714658]
[1746326189700,5.58999999,1839.4,1839.2,5.43693702]
[1746326189866,5.58999999,1839.4,1839.3,5.43685097]
[1746326190066,6.13999999,1839.4,1839.3,5.43685097]
[1746326190361,6.13999999,1839.4,1839.3,5.70588865]
[1746326194092,6.13999999,1839.4,1839.3,0.26903768]
[1746326195283,6.13999999,1839.4,1839.3,5.70588865]
[1746326195676,5.58999999,1839.4,1839.3,5.70588865]
[1746326195871,5.58999999,1839.4,1839.3,6.58748298]
[1746326196100,12.34969999,1839.8,1839.4,6.26751092]
[1746326196264,5.58999999,1839.8,1839.6,5.43580229]
[1746326196463,5.58999999,1839.8,1839.7,6.26666885]
[1746326196669,5.58999999,1839.8,1839.7,6.53245137]
[1746326196910,8.28841956,1840.1,1839.8,5.43523515]
[1746326197058,3.64741956,1840.1,1840.0,6.2657826]
[1746326197430,3.64741956,1840.1,1840.0,6.53044519]
[1746326197700,3.64741956,1840.1,1840.0,7.72698709]
[1746326200562,5.58999999,1840.3,1840.2,5.43419193]
[1746326200780,0.55,1840.5,1840.2,5.43419193]
[1746326200998,0.55,1840.5,1840.2,5.69574753]
[1746326201300,5.98331614,1840.5,1840.2,0.2615556]
[1746326201893,6.74301614,1840.5,1840.3,0.26118245]
[1746326202296,6.74301614,1840.5,1840.1,5.43448199]
[1746326202460,6.74301614,1840.5,1840.4,0.26080935]
[1746326202668,6.74301614,1840.5,1840.0,6.2656163]
[1746326202868,6.74301614,1840.5,1840.1,0.26192878]
[1746326203194,3.0,1840.4,1840.1,0.26192878]
[1746326203395,3.0,1840.4,1840.1,5.69637814]
[1746326203595,5.98349547,1840.5,1840.1,0.26192878]
[1746326203904,5.98349547,1840.5,1840.1,5.69629218]
[1746326204069,5.98349547,1840.5,1840.1,6.89247597]
[1746326204264,0.55,1840.5,1840.1,6.89247597]
[1746326205299,5.98332802,1840.5,1840.1,6.89247597]
[1746326205898,5.98332802,1840.5,1840.1,6.89244993]
[1746326205899,5.98335231,1840.5,1840.1,6.89244993]
[1746326206469,3.0,1840.4,1840.1,0.26192878]
[1746326206670,9.26629311,1840.4,1840.1,0.26192878]
[1746326207167,5.98419193,1840.2,1840.1,0.26192878]
[1746326207400,6.81718468,1840.1,1839.6,0.8075]
[1746326207605,0.55,1839.8,1839.5,10.07501249]
[1746326207774,0.55,1839.8,1839.4,6.24387974]
[1746326207977,5.9853761,1839.8,1839.4,8.32541254]
[1746326208309,5.4360616,1839.6,1839.3,4.49574566]
[1746326208518,0.55,1839.6,1839.3,4.49574566]
[1746326209209,0.55,1839.6,1839.3,9.93248316]
[1746326210012,0.55,1839.6,1839.3,4.49574566]
[1746326210216,0.55,1839.4,1839.3,3.61415133]
[1746326210385,5.43636915,1839.5,1839.3,3.61415133]
[1746326210386,0.55,1839.5,1839.3,3.61415133]
[1746326211400,5.9865039,1839.5,1839.3,3.61415133]
[1746326213113,11.57650389,1839.5,1839.3,3.61415133]
[1746326216316,11.57650389,1839.5,1839.4,0.2615418]
[1746326216817,11.57650389,1839.5,1839.3,3.61415133]
[1746326217029,6.13999999,1839.5,1839.4,0.2615418]
[1746326217384,11.57626197,1839.5,1839.3,3.61415133]
[1746326217682,11.57626197,1839.5,1839.4,0.2615418]
[1746326218119,11.57626197,1839.5,1839.3,3.61415133]
[1746326218319,6.13999999,1839.5,1839.4,0.2615418]
[1746326218730,6.13999999,1839.5,1839.3,3.61415133]
[1746326218922,11.57626255,1839.5,1839.4,0.2615418]
[1746326219218,6.13999999,1839.5,1839.4,0.2615418]
[1746326219717,6.13999999,1839.5,1839.3,3.61415133]